bitfinex-derivatives/quotes_SOLF0:USTF0_20260203
["timestamp","ask_amount","ask_price","bid_price","bid_amount"]
[1770093292940,17.76147798,104.2,104.14,13.28441078]
[1770093293238,9.11597798,104.19,104.14,4.63411078]
[1770093293647,17.76227798,104.19,104.14,4.63411078]
[1770093293839,4.68758468,104.18,104.14,4.63411078]
[1770093294041,4.68758468,104.17,104.13,8.651]
[1770093294540,9.11597798,104.17,104.13,8.651]
[1770093294739,9.11597798,104.17,104.12,4.63411078]
[1770093295743,4.68758468,104.19,104.13,9.06250408]
[1770093295942,9.11597798,104.19,104.13,4.63411078]
[1770093296141,9.11597798,104.18,104.13,4.63411078]
[1770093299041,17.76307798,104.18,104.13,4.63411078]
[1770093299243,9.11597798,104.17,104.11,4.63411078]
[1770093299442,17.76397798,104.17,104.11,4.63411078]
[1770093299846,13.33558468,104.17,104.12,4.63411078]
[1770093300446,4.68758468,104.17,104.12,4.63411078]
[1770093300745,13.0754933,104.18,104.13,4.63411078]
[1770093300746,8.6471,104.18,104.13,4.63411078]
[1770093302246,9.11597798,104.19,104.13,4.63411078]
[1770093302247,4.68758468,104.19,104.14,4.63411078]
[1770093303346,4.68758468,104.19,104.14,13.28441078]
[1770093309252,9.11597798,104.19,104.14,4.63411078]
[1770093309647,9.11597798,104.16,104.11,351.3128]
[1770093309847,9.11597798,104.16,104.11,355.94691078]
[1770093310845,4.68758468,104.16,104.11,4.63411078]
[1770093311957,9.11597798,104.16,104.11,4.63411078]
[1770093313458,17.76477798,104.16,104.11,4.63411078]
[1770093313651,4.4283933,104.13,104.09,4.63411078]
[1770093313956,9.11597798,104.13,104.07,13.28971078]
[1770093314156,9.11597798,104.13,104.08,4.63411078]
[1770093316557,9.11597798,104.15,104.09,4.63411078]
[1770093316757,4.68758468,104.15,104.1,4.63411078]
[1770093316957,9.11597798,104.17,104.11,4.63411078]
[1770093317259,4.68758468,104.17,104.12,4.63411078]
[1770093318057,9.11597798,104.17,104.12,4.63411078]
[1770093321560,4.68758468,104.17,104.12,13.28601078]
[1770093321753,4.68758468,104.17,104.13,4.32482489]
[1770093321960,8.77260434,104.19,104.13,4.32482489]
[1770093322658,4.4283933,104.19,104.13,12.97592489]
[1770093322863,4.34421104,104.2,104.14,8.75321819]
[1770093323161,4.34421104,104.2,104.15,4.32482489]
[1770093323455,8.77260434,104.22,104.16,4.32482489]
[1770093324458,8.77260434,104.22,104.16,12.97342489]
[1770093325456,4.34421104,104.21,104.16,12.97342489]
[1770093325961,8.77260434,104.21,104.16,4.32482489]
[1770093326262,8.77260434,104.19,104.14,4.32482489]
[1770093326463,8.77260434,104.19,104.14,12.97482489]
[1770093327161,4.34421104,104.19,104.14,12.97482489]
[1770093327360,8.77260434,104.21,104.15,12.97432489]
[1770093327660,4.34421104,104.21,104.16,4.32482489]
[1770093328359,8.77260434,104.21,104.16,4.32482489]
[1770093328862,8.77260434,104.2,104.15,8.6494]
[1770093329063,4.34421104,104.19,104.14,4.32482489]
[1770093329362,4.34421104,104.19,104.14,12.97472489]
[1770093330055,4.34421104,104.21,104.16,4.32482489]
[1770093331463,4.34421104,104.21,104.16,12.97352489]
[1770093334070,4.4283933,104.22,104.17,4.32482489]
[1770093334269,4.34421104,104.23,104.18,4.32482489]
[1770093334469,4.34421104,104.23,104.2,4.4283933]
[1770093334973,4.34421104,104.23,104.19,4.4283933]
[1770093335565,4.34421104,104.23,104.17,4.4283933]
[1770093337474,4.34421104,104.22,104.17,4.4283933]
[1770093338474,4.34421104,104.22,104.18,4.4283933]
[1770093341377,4.34421104,104.22,104.19,4.4283933]
[1770093342479,4.34421104,104.22,104.19,4.42200374]
[1770093345582,4.34421104,104.22,104.18,4.42200374]
[1770093347187,4.34421104,104.22,104.18,8.74682863]
[1770093349391,4.34421104,104.22,104.18,4.32482489]
[1770093350287,4.34421104,104.22,104.17,4.42200374]
[1770093352395,4.34421104,104.22,104.17,8.91664712]
[1770093352997,4.34421104,104.22,104.18,4.42200374]
[1770093353396,8.6429,104.23,104.19,4.42200374]
[1770093353595,8.6421,104.24,104.2,4.42200374]
[1770093353896,4.66280517,104.25,104.21,4.42200374]
[1770093355194,4.66280517,104.24,104.21,4.42200374]
[1770093355392,4.66280517,104.24,104.2,4.42200374]
[1770093355895,4.66280517,104.24,104.19,4.42200374]
[1770093356201,4.66280517,104.24,104.18,4.42200374]
[1770093356499,4.66280517,104.24,104.19,4.42200374]
[1770093356699,4.66280517,104.24,104.2,4.42200374]
[1770093357698,4.66280517,104.24,104.19,8.91664712]
[1770093359697,4.66280517,104.23,104.18,8.91664712]
[1770093360695,4.66280517,104.22,104.17,4.42200374]
[1770093360899,4.66280517,104.22,104.17,8.91664712]
[1770093361403,13.30490517,104.24,104.19,4.42200374]
[1770093361803,17.72690891,104.24,104.18,4.49464338]
[1770093362800,13.30490517,104.24,104.19,4.49464338]
[1770093363815,17.72690891,104.24,104.19,4.49464338]
[1770093364397,9.08480891,104.23,104.18,4.49464338]
[1770093364802,17.72780891,104.23,104.18,4.49464338]
[1770093366006,13.30580517,104.23,104.18,4.49464338]
[1770093367006,17.72780891,104.23,104.18,4.49464338]
[1770093369914,13.30580517,104.23,104.18,4.49464338]
[1770093370805,17.72780891,104.23,104.18,4.49464338]
[1770093372010,9.08480891,104.22,104.17,4.49464338]
[1770093372816,4.66280517,104.22,104.17,4.49464338]
[1770093375319,4.66280517,104.22,104.17,13.14174338]
[1770093377823,4.66280517,104.2,104.15,4.49464338]
[1770093379124,9.08480891,104.2,104.15,13.14404338]
[1770093381819,4.66280517,104.2,104.15,13.14404338]
[1770093383726,9.08480891,104.2,104.15,4.49464338]
[1770093384722,4.60341431,104.19,104.14,8.6503]
[1770093385027,9.02541805,104.17,104.12,4.38714419]
[1770093385327,4.60341431,104.17,104.12,4.38714419]
[1770093386330,4.60341431,104.17,104.12,13.03904419]
[1770093387924,28.86,104.24,104.16,4.42200374]
[1770093388230,75.40634447,104.28,104.23,4.42200374]
[1770093388418,75.40634447,104.28,104.22,348.52200374]
[1770093388619,75.40634447,104.28,104.22,4.42200374]
[1770093388928,4.42200374,104.26,104.2,344.06]
[1770093389125,4.42200374,104.25,104.2,344.06]
[1770093389329,4.42200374,104.24,104.17,348.70200374]
[1770093389729,134.3819,104.28,104.19,4.42200374]
[1770093390024,4.42200374,104.26,104.19,4.42200374]
[1770093390731,74.62785044,104.25,104.19,4.42200374]
[1770093391239,74.62785044,104.27,104.23,4.42200374]
[1770093391534,74.62785044,104.31,104.26,4.42200374]
[1770093391730,74.62785044,104.31,104.27,4.42200374]
[1770093392328,74.62785044,104.31,104.22,478.9977]
[1770093392524,74.62785044,104.31,104.25,4.42200374]
[1770093392930,79.13555973,104.29,104.19,134.4867]
[1770093393130,79.13555973,104.29,104.22,4.42200374]
[1770093393131,74.71355599,104.27,104.22,4.42200374]
[1770093393329,74.71355599,104.27,104.21,4.42200374]
[1770093394135,74.69347088,104.29,104.24,4.42200374]
[1770093394736,74.69347088,104.29,104.25,4.42200374]
[1770093397138,74.69347088,104.29,104.26,4.42200374]
[1770093397337,74.69347088,104.29,104.22,487.4814]
[1770093397338,74.61764582,104.31,104.27,4.42200374]
[1770093398541,74.61764582,104.31,104.25,4.42200374]
[1770093398736,74.61764582,104.31,104.26,4.42200374]
[1770093400433,83.25414582,104.31,104.26,4.42200374]
[1770093400833,83.25414582,104.31,104.25,4.42200374]
[1770093402031,72.46013133,104.29,104.23,4.42200374]
[1770093402436,72.46013133,104.29,104.22,344.38]
[1770093402833,134.371,104.29,104.21,11.04517405]
[1770093403142,72.45975729,104.28,104.19,11.04517405]
[1770093403742,72.47911136,104.26,104.19,11.04517405]
[1770093404242,81.11961136,104.26,104.19,11.04517405]
[1770093404840,81.11961136,104.26,104.18,149.6065]
[1770093405944,81.11961136,104.26,104.19,8.6458]
[1770093406143,81.11961136,104.26,104.19,19.69097405]
[1770093406743,72.47911136,104.26,104.19,19.69097405]
[1770093407645,72.47911136,104.26,104.19,8.6458]
[1770093408844,72.47911136,104.26,104.2,8.6453]
[1770093412942,81.11961136,104.26,104.18,140.96]
[1770093413839,72.45250835,104.24,104.18,140.96]
[1770093414743,72.45250835,104.24,104.18,149.80697507]
[1770093415043,81.09460835,104.24,104.18,149.6069]
[1770093415245,72.45250835,104.24,104.18,149.6069]
[1770093421047,72.0871636,104.22,104.16,20.64294183]
[1770093421250,72.0871636,104.22,104.15,8.84697507]
[1770093421745,72.0871636,104.22,104.16,8.6484]
[1770093421941,72.06758755,104.24,104.16,17.49537507]
[1770093422142,72.06758755,104.24,104.18,8.84697507]
[1770093422347,76.48962198,104.24,104.18,13.2690095]
[1770093422844,72.06758755,104.24,104.19,8.84697507]
[1770093424838,76.37008038,104.22,104.17,8.84697507]
[1770093426950,71.94804595,104.22,104.17,17.49487507]
[1770093427150,71.94804595,104.22,104.17,21.9169095]
[1770093427950,71.94292988,104.2,104.15,17.49577507]
[1770093428150,71.94292988,104.2,104.16,8.84697507]
[1770093430047,71.94292988,104.2,104.15,21.9178095]
[1770093431048,71.94292988,104.2,104.16,8.84697507]
[1770093431449,71.94292988,104.2,104.15,17.49577507]
[1770093433656,76.36496431,104.2,104.14,17.49727507]
[1770093433948,76.36496431,104.2,104.14,8.6503]
[1770093434551,72.50745162,104.18,104.14,8.6503]
[1770093435351,72.50745162,104.18,104.15,8.6495]
[1770093435556,11.96125162,104.18,104.15,8.6495]
[1770093438360,11.96125162,104.18,104.14,8.6504]
[1770093438754,16.38328605,104.18,104.13,349.28]
[1770093440857,16.38328605,104.18,104.12,8.6512]
[1770093441054,41.99730641,104.16,104.12,8.6512]
[1770093441760,41.99730641,104.16,104.11,364.5090095]
[1770093441959,41.99730641,104.16,104.11,13.2690095]
[1770093442356,46.41934084,104.16,104.11,8.84697507]
[1770093442563,46.41934084,104.16,104.1,8.6532]
[1770093444359,46.41934084,104.16,104.05,16.21800119]
[1770093444360,31.10173034,104.11,104.05,16.21800119]
[1770093444556,35.52376477,104.11,104.05,4.42203443]
[1770093445261,4.42203443,104.1,104.04,487.284]
[1770093445454,4.42203443,104.1,104.06,8.6568]
[1770093445852,35.52376477,104.11,104.06,8.6568]
[1770093446959,35.52376477,104.11,104.04,357.02203443]
[1770093448563,35.52376477,104.11,104.05,8.6579]
[1770093450864,35.52376477,104.11,104.06,8.657]
[1770093451463,35.52376477,104.11,104.07,8.6562]
[1770093451464,31.10173034,104.11,104.07,8.6562]
[1770093452762,35.24389555,104.13,104.07,8.6562]
[1770093453361,35.24389555,104.12,104.07,8.6562]
[1770093454061,30.82186112,104.12,104.07,8.6562]
[1770093454363,16.25106112,104.12,104.07,139.07283443]
[1770093456465,16.25106112,104.12,104.08,8.6545]
[1770093457063,16.25106112,104.12,104.09,8.6545]
[1770093457462,23.48968077,104.15,104.09,139.04813443]
[1770093457761,23.48968077,104.15,104.12,8.652]
[1770093458171,4.42203443,104.17,104.12,8.652]
[1770093458962,4.42203443,104.17,104.13,8.6511]
[1770093459167,4.42203443,104.18,104.13,8.6511]
[1770093459368,4.42203443,104.19,104.13,8.6511]
[1770093459666,4.42203443,104.19,104.14,8.6503]
[1770093459864,4.42203443,104.2,104.14,8.6503]
[1770093460266,16.06990108,104.19,104.14,8.6503]
[1770093463868,20.45561153,104.18,104.13,4.00296571]
[1770093464669,20.45561153,104.17,104.13,8.6511]
[1770093464971,20.44831291,104.16,104.1,495.0327]
[1770093465270,20.44831291,104.16,104.1,501.16082257]
[1770093466173,16.02212297,104.16,104.1,501.16082257]
[1770093466379,16.02212297,104.16,104.12,8.6519]
[1770093468176,20.44831291,104.16,104.11,8.6528]
[1770093468879,16.02212297,104.16,104.11,8.6528]
[1770093472980,23.30992013,104.15,104.1,369.0737]
[1770093473185,23.30992013,104.14,104.1,8.6537]
[1770093474183,18.88373019,104.14,104.1,8.6537]
[1770093475384,18.88373019,104.16,104.12,10.35429727]
[1770093475584,18.88373019,104.16,104.1,383.54048721]
[1770093476385,18.88373019,104.16,104.12,8.652]
[1770093479487,23.30992013,104.19,104.13,11.81984233]
[1770093481293,23.30992013,104.19,104.14,8.6501]
[1770093484296,18.88373019,104.19,104.14,8.6501]
[1770093485594,23.30992013,104.17,104.13,8.6511]
[1770093486096,23.30992013,104.17,104.11,22.12443406]
[1770093486497,23.30992013,104.17,104.11,13.47243406]
[1770093487399,23.30992013,104.17,104.12,8.6516]
[1770093492506,18.88373019,104.17,104.12,8.6516]
[1770093492901,18.88373019,104.19,104.13,15.55280573]
[1770093493806,18.88373019,104.19,104.13,19.97899567]
[1770093494308,18.88373019,104.19,104.14,8.6503]
[1770093497512,18.88373019,104.19,104.15,8.6493]
[1770093501310,25.05758143,104.21,104.16,8.6486]
[1770093501813,25.05758143,104.21,104.16,18.73606022]
[1770093502206,4.42618994,104.24,104.17,23.16225016]
[1770093502413,4.42618994,104.25,104.18,29.28198697]
[1770093503310,4.42618994,104.25,104.19,8.6461]
[1770093504316,29.48377137,104.25,104.19,8.6461]
[1770093507219,25.05758143,104.25,104.2,8.6454]
[1770093508515,29.48377137,104.25,104.2,8.6454]
[1770093509412,25.05758143,104.25,104.2,8.6454]
[1770093510817,29.48377137,104.25,104.2,8.6454]
[1770093513921,25.05758143,104.25,104.2,8.6454]
[1770093514419,25.05758143,104.25,104.21,33.50009703]
[1770093541348,28.79148148,104.27,104.23,28.47914236]
[1770093541944,28.79148148,104.27,104.23,37.12174236]
[1770093549049,28.79148148,104.29,104.24,37.12114236]
[1770093550356,33.2118901,104.29,104.24,37.12114236]
[1770093550953,28.79148148,104.28,104.22,37.12244236]
[1770093551555,28.79148148,104.28,104.23,28.47914236]
[1770093556559,33.2118901,104.28,104.23,28.47914236]
[1770093557361,28.79148148,104.28,104.23,28.47914236]
[1770093559256,28.79148148,104.3,104.25,32.89955098]
[1770093559658,28.79148148,104.3,104.25,28.47914236]
[1770093560059,33.2118901,104.3,104.25,28.47914236]
[1770093560362,33.8202503,104.29,104.23,31.50594036]
[1770093561161,29.39984168,104.29,104.23,31.50594036]
[1770093562360,29.39984168,104.29,104.25,31.50594036]
[1770093563362,4.42040862,104.31,104.25,31.50594036]
[1770093563363,29.39984168,104.31,104.25,31.50594036]
[1770093563859,29.39984168,104.31,104.26,31.50594036]
[1770093567361,29.39984168,104.31,104.26,40.14634036]
[1770093568462,33.8202503,104.33,104.27,40.14544036]
[1770093569365,33.8202503,104.32,104.27,40.14544036]
[1770093569857,33.8202503,104.32,104.28,31.50594036]
[1770093570565,33.8202503,104.31,104.26,31.50594036]
[1770093571565,33.8202503,104.31,104.26,40.14634036]
[1770093573366,29.39984168,104.31,104.26,40.14634036]
[1770093573567,29.39984168,104.31,104.27,40.14534036]
[1770093574668,33.8202503,104.33,104.27,40.14534036]
[1770093575966,33.8202503,104.32,104.27,40.14534036]
[1770093578672,29.39984168,104.32,104.27,40.14534036]
[1770093581673,29.39984168,104.32,104.28,8.6387]
[1770093582175,29.39984168,104.32,104.28,40.14464036]
[1770093582865,29.39984168,104.34,104.3,31.50594036]
[1770093584674,29.39984168,104.36,104.31,31.50594036]
[1770093585973,33.8202503,104.38,104.33,31.50594036]
[1770093586282,29.39984168,104.38,104.33,31.50594036]
[1770093587069,33.80967296,104.38,104.33,31.50594036]
[1770093591177,29.39984168,104.38,104.33,40.14034036]
[1770093592483,33.80967296,104.38,104.34,32.86100707]
[1770093592982,33.80967296,104.38,104.32,32.86100707]
[1770093593786,29.39984168,104.38,104.33,32.86100707]
[1770093594178,36.20460764,104.4,104.33,32.86100707]
[1770093594483,36.20460764,104.4,104.34,32.86100707]
[1770093594884,31.79477636,104.4,104.34,32.86100707]
[1770093595485,36.20460764,104.4,104.34,41.49460707]
[1770093596686,8.628,104.41,104.34,32.86100707]
[1770093596687,36.20460764,104.39,104.34,32.86100707]
[1770093599180,36.20460764,104.38,104.32,32.86100707]
[1770093599386,36.20460764,104.37,104.32,32.86100707]
[1770093599986,31.79477636,104.37,104.32,32.86100707]
[1770093600481,44.83460764,104.39,104.32,37.27083835]
[1770093600686,31.79477636,104.39,104.34,32.86100707]
[1770093602384,31.79477636,104.39,104.34,41.49470707]
[1770093602985,44.83330764,104.41,104.35,32.86100707]
[1770093603289,36.20460764,104.41,104.36,32.86100707]
[1770093603490,31.79477636,104.41,104.36,32.86100707]
[1770093605385,31.79477636,104.41,104.36,41.49300707]
[1770093606289,36.20460764,104.41,104.36,41.49300707]
[1770093606687,31.79477636,104.43,104.37,41.49230707]
[1770093606887,36.20460764,104.43,104.37,41.49230707]
[1770093607383,4.40983128,104.42,104.37,41.49230707]
[1770093607589,36.20460764,104.42,104.37,41.49230707]
[1770093608381,36.20460764,104.42,104.37,32.86100707]
[1770093609489,31.79477636,104.42,104.37,32.86100707]
[1770093609685,36.20460764,104.42,104.37,32.86100707]
[1770093610390,36.20460764,104.41,104.37,32.86100707]
[1770093610989,36.20460764,104.4,104.35,423.89390707]
[1770093611785,36.20460764,104.39,104.35,32.86100707]
[1770093611992,36.20460764,104.38,104.33,32.86100707]
[1770093613396,31.79477636,104.38,104.33,41.49520707]
[1770093615090,31.79477636,104.38,104.34,32.86100707]
[1770093616093,44.83380764,104.4,104.34,32.86100707]
[1770093616392,13.03763128,104.42,104.35,32.86100707]
[1770093616596,31.79477636,104.41,104.35,37.27083835]
[1770093616996,31.79477636,104.41,104.35,32.86100707]
[1770093617398,31.79477636,104.41,104.36,37.27083835]
[1770093617800,36.20460764,104.43,104.36,37.27083835]
[1770093617994,36.20460764,104.43,104.37,32.86100707]
[1770093618797,36.20460764,104.43,104.37,41.49230707]
[1770093619196,31.79477636,104.43,104.38,32.86100707]
[1770093619390,36.20460764,104.43,104.38,32.86100707]
[1770093620403,36.20460764,104.43,104.38,41.49140707]
[1770093620802,31.79477636,104.43,104.38,41.49140707]
[1770093621698,31.79477636,104.43,104.39,8.6295]
[1770093621903,31.79477636,104.43,104.39,42.24789877]
[1770093622699,31.79477636,104.43,104.39,33.61839877]
[1770093623108,36.20460764,104.43,104.37,42.24909877]
[1770093624106,36.20460764,104.43,104.37,33.61839877]
[1770093624309,38.73849634,104.42,104.37,33.61839877]
[1770093624897,34.32866506,104.42,104.37,33.61839877]
[1770093625103,38.73849634,104.42,104.37,33.61839877]
[1770093628409,42.95416506,104.44,104.37,42.24969877]
[1770093628608,34.32866506,104.44,104.38,38.02823005]
[1770093629012,34.32866506,104.44,104.39,42.24799877]
[1770093629212,38.73849634,104.45,104.4,33.61839877]
[1770093629604,34.32866506,104.45,104.4,33.61839877]
[1770093630813,34.32866506,104.45,104.41,33.61839877]
[1770093631715,37.10815142,104.47,104.42,33.61839877]
[1770093631911,4.40983128,104.46,104.4,33.61839877]
[1770093632209,34.32866506,104.46,104.41,42.24629877]
[1770093633416,34.32866506,104.46,104.41,33.61839877]
[1770093634813,38.73849634,104.46,104.4,8.6288]
[1770093635120,38.73849634,104.45,104.4,8.6288]
[1770093635712,38.73849634,104.45,104.4,42.24719877]
[1770093636419,34.32866506,104.45,104.4,42.24719877]
[1770093642426,34.32866506,104.45,104.41,8.6279]
[1770093642719,41.5179827,104.47,104.41,42.24629877]
[1770093643021,37.10815142,104.47,104.41,46.65613005]
[1770093644013,37.10815142,104.47,104.42,8.6271]
[1770093644215,34.32866506,104.49,104.43,38.02823005]
[1770093645223,34.32866506,104.49,104.45,8.6246]
[1770093645425,19.88416506,104.49,104.45,33.61839877]
[1770093645616,4.40983128,104.52,104.45,33.61839877]
[1770093645818,4.40983128,104.52,104.46,33.61839877]
[1770093646422,4.39882548,104.52,104.46,33.61839877]
[1770093647324,4.39882548,104.52,104.47,8.623]
[1770093647523,38.72749054,104.52,104.47,8.623]
[1770093649128,34.32866506,104.52,104.48,33.61839877]
[1770093649327,34.32866506,104.54,104.49,33.61839877]
[1770093649531,38.72749054,104.56,104.49,38.01722425]
[1770093650029,4.39882548,104.55,104.49,33.61839877]
[1770093650329,39.77292256,104.54,104.49,42.23979877]
[1770093650725,35.37409708,104.54,104.49,33.61839877]
[1770093650933,36.63478254,104.56,104.49,38.01722425]
[1770093651127,36.63478254,104.56,104.49,172.12682425]
[1770093651330,32.23595706,104.56,104.51,8.6197]
[1770093651631,36.63478254,104.56,104.51,8.6197]
[1770093652231,36.63478254,104.56,104.5,32.78571652]
[1770093652622,36.63478254,104.55,104.5,32.78571652]
[1770093652825,4.39882548,104.53,104.48,41.40771652]
[1770093653731,32.23595706,104.54,104.48,41.40771652]
[1770093653732,32.23595706,104.54,104.49,41.40701652]
[1770093655036,36.63478254,104.54,104.49,41.40701652]
[1770093658236,32.23595706,104.54,104.49,41.40701652]
[1770093658432,36.63478254,104.56,104.5,41.40611652]
[1770093659539,32.23595706,104.56,104.5,41.40611652]
[1770093660434,32.23595706,104.56,104.51,41.40541652]
[1770093660632,32.23595706,104.58,104.52,32.78571652]
[1770093660832,36.63478254,104.58,104.52,32.78571652]
[1770093661233,32.23595706,104.58,104.53,41.40371652]
[1770093661443,32.23595706,104.62,104.55,32.78571652]
[1770093661638,4.39882548,104.63,104.56,171.204642]
[1770093661941,36.63478254,104.64,104.58,8.614]
[1770093662140,32.23595706,104.64,104.58,32.78571652]
[1770093662440,32.23595706,104.67,104.61,32.78571652]
[1770093662634,32.23595706,104.67,104.62,37.184542]
[1770093663132,36.63478254,104.67,104.59,32.78571652]
[1770093663339,4.39882548,104.65,104.6,32.78571652]
[1770093663536,4.39882548,104.64,104.58,414.62571652]
[1770093663841,4.39882548,104.64,104.59,41.39871652]
[1770093664045,4.39882548,104.61,104.56,32.78571652]
[1770093664237,32.23595706,104.62,104.56,32.78571652]
[1770093664431,32.23595706,104.62,104.57,8.6144]
[1770093664636,36.63478254,104.64,104.58,32.78571652]
[1770093664940,36.63478254,104.66,104.6,41.39791652]
[1770093665732,4.39882548,104.65,104.6,32.78571652]
[1770093665934,4.39882548,104.63,104.58,390.3533]
[1770093666134,36.63478254,104.65,104.58,427.537842]
[1770093666340,36.63478254,104.65,104.59,32.78571652]
[1770093666643,32.23595706,104.65,104.59,41.39871652]
[1770093666845,36.63478254,104.65,104.59,41.39871652]
[1770093667037,4.39882548,104.64,104.59,32.78571652]
[1770093667238,36.63478254,104.65,104.59,32.78571652]
[1770093667639,32.23595706,104.65,104.59,32.78571652]
[1770093667842,36.63478254,104.65,104.59,32.78571652]
[1770093668342,36.63478254,104.65,104.59,41.39871652]
[1770093669542,4.39882548,104.64,104.59,41.39871652]
[1770093669738,4.39882548,104.64,104.59,32.78571652]
[1770093670939,4.39882548,104.64,104.59,41.39871652]
[1770093671145,36.63478254,104.67,104.6,37.184542]
[1770093671350,32.23595706,104.67,104.61,37.184542]
[1770093671743,35.01544342,104.7,104.63,32.78571652]
[1770093671944,4.39882548,104.69,104.63,32.78571652]
[1770093672248,4.39882548,104.68,104.63,32.78571652]
[1770093672646,4.39882548,104.67,104.61,32.78571652]
[1770093673045,4.39882548,104.66,104.61,32.78571652]
[1770093673748,4.39882548,104.67,104.61,32.78571652]
[1770093674239,4.39882548,104.68,104.63,32.78571652]
[1770093674441,7.17831184,104.7,104.63,37.184542]
[1770093675145,4.39882548,104.69,104.63,32.78571652]
[1770093675846,39.4142689,104.7,104.63,37.184542]
[1770093676049,35.01544342,104.7,104.64,4.39882548]
[1770093676349,39.4142689,104.7,104.63,37.184542]
[1770093676545,39.4142689,104.7,104.63,45.794242]
[1770093676753,4.39882548,104.69,104.63,41.39541652]
[1770093677948,36.63478254,104.68,104.63,41.39541652]
[1770093678146,2.77948636,104.7,104.64,37.184542]
[1770093678350,39.4142689,104.7,104.64,32.78571652]
[1770093678652,36.63478254,104.73,104.66,41.39291652]
[1770093678851,4.39882548,104.72,104.66,32.78571652]
[1770093679154,4.39882548,104.71,104.66,32.78571652]
[1770093679547,36.63478254,104.71,104.64,422.81411652]
[1770093679754,4.39882548,104.69,104.64,32.78571652]
[1770093680059,32.23595706,104.7,104.64,32.78571652]
[1770093680256,37.62838425,104.72,104.66,33.89614132]
[1770093680661,33.22955877,104.72,104.66,33.89614132]
[1770093680861,37.62838425,104.74,104.67,33.89614132]
[1770093681053,33.22955877,104.74,104.67,38.2949668]
[1770093681260,33.22955877,104.74,104.67,33.89614132]
[1770093681559,4.39882548,104.72,104.67,33.89614132]
[1770093681761,4.39882548,104.71,104.65,33.89614132]
[1770093682455,37.62838425,104.7,104.64,381.4]
[1770093682661,4.39882548,104.69,104.64,381.4]
[1770093683054,37.62838425,104.72,104.65,33.89614132]
[1770093683456,37.62838425,104.72,104.66,33.89614132]
[1770093683662,4.39882548,104.73,104.66,33.89614132]
[1770093684051,4.39882548,104.73,104.66,38.2949668]
[1770093684254,41.83085877,104.74,104.67,38.2949668]
[1770093684459,4.39882548,104.72,104.67,33.89614132]
[1770093684660,4.39882548,104.7,104.65,33.89614132]
[1770093685462,33.22955877,104.7,104.65,33.89614132]
[1770093685660,37.62838425,104.7,104.65,33.89614132]
[1770093686562,4.39882548,104.69,104.63,294.11614132]
[1770093687562,4.39882548,104.69,104.63,33.89614132]
[1770093687860,37.62838425,104.7,104.63,33.89614132]
[1770093688357,4.39882548,104.71,104.65,33.89614132]
[1770093688560,37.62838425,104.71,104.65,33.89614132]
[1770093688760,37.62838425,104.73,104.67,33.89614132]
[1770093690462,46.23008425,104.73,104.67,33.89614132]
[1770093690659,41.83125877,104.73,104.67,33.89614132]
[1770093690860,46.23008425,104.73,104.67,33.89614132]
[1770093691455,33.22955877,104.71,104.65,33.89614132]
[1770093691763,37.62838425,104.71,104.65,33.89614132]
[1770093691966,4.39882548,104.72,104.65,38.2949668]
[1770093692465,46.23088425,104.72,104.65,33.89614132]
[1770093693062,46.23088425,104.72,104.65,38.2949668]
[1770093694467,46.23088425,104.72,104.65,33.89614132]
[1770093694768,37.62838425,104.71,104.65,33.89614132]
[1770093695061,33.22955877,104.71,104.65,33.89614132]
[1770093695865,13.00132548,104.72,104.65,38.2949668]
[1770093697159,37.62838425,104.7,104.64,217.44]
[1770093697364,37.62838425,104.7,104.64,251.33614132]
[1770093697759,4.39882548,104.68,104.64,33.89614132]
[1770093697964,33.22955877,104.69,104.62,33.89614132]
[1770093698162,33.22955877,104.69,104.63,33.89614132]
[1770093699157,144.77734253,104.72,104.63,33.89614132]
[1770093699357,41.83345877,104.71,104.64,33.89614132]
[1770093699865,8.6024,104.73,104.65,33.89614132]
[1770093700062,41.83195877,104.73,104.65,33.89614132]
[1770093701368,41.83195877,104.73,104.66,33.89614132]
[1770093701765,33.22955877,104.73,104.66,33.89614132]
[1770093702070,33.22955877,104.73,104.67,33.89614132]
[1770093702870,33.22955877,104.73,104.66,8.6071]
[1770093703067,33.22955877,104.73,104.66,42.50324132]
[1770093703767,41.83125877,104.73,104.66,33.89614132]
[1770093704168,33.22955877,104.71,104.64,33.89614132]
[1770093705070,41.83285877,104.71,104.64,33.89614132]
[1770093705471,41.83375877,104.7,104.64,33.89614132]
[1770093705862,33.22955877,104.7,104.64,42.50514132]
[1770093706669,33.22955877,104.7,104.65,33.89614132]
[1770093708262,41.83395877,104.7,104.63,42.50604132]
[1770093708467,33.22955877,104.7,104.63,33.89614132]
[1770093708974,8.6033,104.71,104.63,33.89614132]
[1770093709271,41.83285877,104.71,104.63,33.89614132]
[1770093709772,33.22955877,104.71,104.65,33.89614132]
[1770093713273,56.45703436,104.73,104.66,37.59113852]
[1770093713574,36.89289419,104.72,104.66,37.59113852]
[1770093714374,36.89289419,104.72,104.66,46.19833852]
[1770093715572,36.89289419,104.74,104.68,8.6054]
[1770093715771,36.89289419,104.74,104.69,37.59113852]
[1770093716572,36.89289419,104.76,104.69,37.59113852]